Workbook

Sheet ORÇAMENTO
A1: <---- NUMERAR SERVIÇOS PARA CPU | C1: Ministério do Desenvolvimento Regional
C2: Companhia de Desenvolvimento dos Vales do São Francisco e do Parnaíba
C3: 1ª Superintendência Regional
B5: OBRA: | C5: PAVIMENTAÇÃO ASFÁLTICA EM CBUQ - AV. PAREDÃO DE MINAS (BURITIZEIRO / MG)
B6: DATA: | C6: AGOSTO / 2023 | G6: BDI Serviços: | I6: ='BDI SERV'!D31/100 -> 0.2135
B7: PRAZO DE EXECUÇÃO: 180 DIAS | G7: BDI Serviços: | I7: ='BDI FORN'!D31/100 -> 0.15
B8: ITEM | C8: DISCRIMINAÇÃO | D8: REFER. | E8: UNID. | F8: QUANT. | G8: P. UNITÁRIO | H8: P.UNIT.C/ BDI | I8: P. TOTAL
A9: A | B9: 1 | C9: SERVIÇOS PRELIMINARES | I9: =SUM(I10:I14) -> 216753.99
A10: 1 | B10: 1.1 | C10: MOBILIZAÇÃO E DESMOBILIZAÇÃO | D10: CPU.1 | E10: GL | F10: 1 | G10: =VLOOKUP(A10,CPU!$A$1:$N$4667,9) -> 17031.18 | H10: =VLOOKUP(A10,CPU!$A$1:$N$4667,10) -> 20667.34 | I10: =ROUND(F10*H10,2) -> 20667.34
A11: 2 | B11: 1.2 | C11: ADMINISTRAÇÃO LOCAL | D11: CPU.2 | E11: GL | F11: 1 | G11: =VLOOKUP(A11,CPU!$A$1:$N$4667,9) -> 140379.6 | H11: =VLOOKUP(A11,CPU!$A$1:$N$4667,10) -> 170350.64 | I11: =ROUND(F11*H11,2) -> 170350.64
A12: 3 | B12: 1.3 | C12: CANTEIRO DE OBRAS | D12: CPU.3 | E12: GL | F12: 1 | G12: =VLOOKUP(A12,CPU!$A$1:$N$4667,9) -> 18107.4 | H12: =VLOOKUP(A12,CPU!$A$1:$N$4667,10) -> 21973.33 | I12: =ROUND(F12*H12,2) -> 21973.33
A13: 4 | B13: 1.4 | C13: PLACA DE OBRA EM CHAPA DE AÇO GALVANIZADO | D13: 103689 | E13: M2 | F13: 6 | G13: =VLOOKUP(A13,CPU!$A$1:$N$4667,9) -> 340.98 | H13: =VLOOKUP(A13,CPU!$A$1:$N$4667,10) -> 413.78 | I13: =ROUND(F13*H13,2) -> 2482.68
A14: 5 | B14: 1.5 | C14: LOCAÇÃO DE PAVIMENTAÇÃO | D14: 99064 | E14: M | F14: 1600 | G14: =VLOOKUP(A14,CPU!$A$1:$N$4667,9) -> 0.66 | H14: =VLOOKUP(A14,CPU!$A$1:$N$4667,10) -> 0.8 | I14: =ROUND(F14*H14,2) -> 1280
A15: B | B15: 2 | C15: TERRAPLANAGEM E PAVIMENTAÇÃO | I15: =SUM(I16:I22) -> 266397.2
A16: 6 | B16: 2.1 | C16: ESCAVAÇÃO HORIZONTAL EM SOLO DE 1A CATEGORIA | D16: 101116 | E16: M3 | F16: 6700 | G16: =VLOOKUP(A16,CPU!$A$1:$N$4667,9) -> 1.87 | H16: =VLOOKUP(A16,CPU!$A$1:$N$4667,10) -> 2.27 | I16: =ROUND(F16*H16,2) -> 15209
A17: 7 | B17: 2.2 | C17: CARGA, MANOBRA E DESCARGA DE SOLOS E MATERIAIS GRANULARES EM CAMINHÃO BASCULANTE | D17: 100976 | E17: M3 | F17: 6700 | G17: =VLOOKUP(A17,CPU!$A$1:$N$4667,9) -> 6.49 | H17: =VLOOKUP(A17,CPU!$A$1:$N$4667,10) -> 7.88 | I17: =ROUND(F17*H17,2) -> 52796
A18: 8 | B18: 2.3 | C18: REGULARIZAÇÃO E COMPACTAÇÃO DO SUBLEITO | D18: 100577 | E18: M2 | F18: 16700 | G18: =VLOOKUP(A18,CPU!$A$1:$N$4667,9) -> 1.08 | H18: =VLOOKUP(A18,CPU!$A$1:$N$4667,10) -> 1.31 | I18: 21877
A19: 9 | B19: 2.4 | C19: EXECUÇÃO E COMPACTAÇÃO DE BASE E OU SUB BASE PARA PAVIMENTAÇÃO DE SOLOS DE COMPORTAMENTO LATERÍTICO - EXCLUSIVE SOLO, ESCAVAÇÃO, CARGA E TRANSPORTE (CASCALHO FORNECIDO PELA PREFEITURA) | D19: 96388 | E19: M3 | F19: 3350 | G19: =VLOOKUP(A19,CPU!$A$1:$N$4667,9) -> 11.09 | H19: =VLOOKUP(A19,CPU!$A$1:$N$4667,10) -> 13.46 | I19: 45091
A20: 10 | B20: 2.5 | C20: IMPRIMAÇÃO COM EMULSÃO ASFÁLTICA (EAI) | D20: 96401 | E20: M2 | F20: 16700 | G20: =VLOOKUP(A20,CPU!$A$1:$N$4667,9) -> 1.11 | H20: =VLOOKUP(A20,CPU!$A$1:$N$4667,10) -> 1.35 | I20: 22545
A21: 11 | B21: 2.6 | C21: PINTURA DE LIGAÇÃO COM EMULSÃO ASFÁLTICA RR-2C | D21: 96402 | E21: M2 | F21: 15100 | G21: =VLOOKUP(A21,CPU!$A$1:$N$4667,9) -> 0.91 | H21: =VLOOKUP(A21,CPU!$A$1:$N$4667,10) -> 1.1 | I21: 16610
A22: 12 | B22: 2.7 | C22: EXECUÇÃO DE PAVIMENTO COM APLICAÇÃO DE CONCRETO ASFÁLTICO USINADO A QUENTE (CBUQ), CAMADA DE ROLAMENTO - EXCLUSIVE TRANSPORTE | D22: 95995 | E22: M3 | F22: 680 | G22: =VLOOKUP(A22,CPU!$A$1:$N$4667,9) -> 111.82 | H22: =VLOOKUP(A22,CPU!$A$1:$N$4667,10) -> 135.69 | I22: 92269.2
A23: C | B23: 3 | C23: TRANSPORTE DE MATERIAIS | I23: =SUM(I24:I27) -> 389504.02
A24: 13 | B24: 3.1 | C24: TRANSPORTE COM CAMINHÃO BASCULANTE, EM VIA URBANA PAVIMENTADA | D24: 95877 | E24: M3XKM | F24: 150000.0033 | G24: =VLOOKUP(A24,CPU!$A$1:$N$4667,9) -> 1.62 | H24: =VLOOKUP(A24,CPU!$A$1:$N$4667,10) -> 1.97 | I24: =ROUND(F24*H24,2) -> 295500.01
A25: 13.5 | B25: 3.2 | C25: TRANSPORTE COM CAMINHÃO BASCULANTE, EM VIA URBANA PAVIMENTADA - ADICIONAL PARA DMT EXCEDENTE A 30KM | D25: 95427 | E25: M3XKM | F25: 109000 | G25: =VLOOKUP(A25,CPU!$A$1:$N$4667,9) -> 0.66 | H25: =VLOOKUP(A25,CPU!$A$1:$N$4667,10) -> 0.8 | I25: =ROUND(F25*H25,2) -> 87200
A26: 14 | B26: 3.3 | C26: TRANSPORTE COM CAMINHÃO CARROCERIA 9T, EM VIA URBANA PAVIMENTADA | D26: 100947 | E26: TXKM | F26: 600.0038808 | G26: =VLOOKUP(A26,CPU!$A$1:$N$4667,9) -> 1.93 | H26: =VLOOKUP(A26,CPU!$A$1:$N$4667,10) -> 2.34 | I26: =ROUND(F26*H26,2) -> 1404.01
A27: 15 | B27: 3.4 | C27: TRANSPORTE COM CAMINHÃO TANQUE DE TRANSPORTE DE MATERIAL ASFÁLTICO DE 30000 L, EM VIA URBANA PAVIMENTADA (BDI DIFERENCIADO) | D27: 102331 | E27: TXKM | F27: 10000 | G27: =VLOOKUP(A27,CPU!$A$1:$N$4667,9) -> 0.47 | H27: =VLOOKUP(A27,CPU!$A$1:$N$4667,10) -> 0.54 | I27: =ROUND(F27*H27,2) -> 5400
A28: D | B28: 4 | C28: OBRAS COMPLEMENTARES | I28: =SUM(I29:I32) -> 328128.55
A29: 16 | B29: 4.1 | C29: GUIA (MEIO-FIO) E SARJETA CONJUGADOS DE CONCRETO, MOLDADA IN LOCO COM EXTRUSORA, 45 CM BASE (15 CM BASE DA GUIA + 30 CM BASE DA SARJETA) X 22 CM ALTURA | D29: 94267 | E29: M | F29: 2900 | G29: =VLOOKUP(A29,CPU!$A$1:$N$4667,9) -> 57.38 | H29: =VLOOKUP(A29,CPU!$A$1:$N$4667,10) -> 69.63 | I29: =ROUND(F29*H29,2) -> 201927
A30: 17 | B30: 4.2 | C30: FORNECIMENTO E INSTALAÇÃO DE PLACA DE SINALIZAÇÃO VIÁRIA - REGULAMENTAÇÃO OCTOGONAL (PARE) 0,60MX0,60M | D30: CPU.4 | E30: UN. | F30: 28 | G30: =VLOOKUP(A30,CPU!$A$1:$N$4667,9) -> 444.46 | H30: =VLOOKUP(A30,CPU!$A$1:$N$4667,10) -> 539.35 | I30: =ROUND(F30*H30,2) -> 15101.8
A31: 18 | B31: 4.3 | C31: FORNECIMENTO E INSTALAÇÃO DE PLACA DE IDENTIFICACAO DE RUA EM CHAPA DE AÇO PINTADA COM PELÍCULA DE ALTA INTENSIDADE, 45 CM X 20 CM - INCLUSIVE SUPORTE DE MADEIRA, CONFORME PROJETO (02 PLACAS POR SUPORTE) | D31: CPU.5 | E31: UN. | F31: 25 | G31: =VLOOKUP(A31,CPU!$A$1:$N$4667,9) -> 234.22 | H31: =VLOOKUP(A31,CPU!$A$1:$N$4667,10) -> 284.23 | I31: =ROUND(F31*H31,2) -> 7105.75
A32: 19 | B32: 4.4 | C32: PINTURA DE FAIXA COM TINTA ACRÍLICA - ESPESSURA DE 0,10 MM | D32: 5213401 | E32: M2 | F32: 2200 | G32: =VLOOKUP(A32,CPU!$A$1:$N$4667,9) -> 38.95 | H32: =VLOOKUP(A32,CPU!$A$1:$N$4667,10) -> 47.27 | I32: =ROUND(F32*H32,2) -> 103994
A33: E | B33: 5 | C33: FORNECIMENTOS - MATERIAL ASFÁLTICO (BDI DIFERENCIADO) | I33: =SUM(I34:I36) -> 1293822.57
A34: 20 | B34: 5.1 | C34: AQUISIÇÃO DE EMULSÃO ASFÁLTICA PARA IMPRIMAÇÃO (EAI) - EXCLUSIVE TRANSPORTE | D34: CPU.6 | E34: T | F34: 23.995 | G34: =VLOOKUP(A34,CPU!$A$1:$N$4667,9) -> 2272.33 | H34: =VLOOKUP(A34,CPU!$A$1:$N$4667,10) -> 2613.18 | I34: =ROUND(F34*H34,2) -> 62703.25
A35: 21 | B35: 5.2 | C35: AQUISIÇÃO DE EMULSAO ASFALTICA CATIONICA RR-2C - EXCLUSIVE TRANSPORTE | D35: CPU.7 | E35: T | F35: 7.495 | G35: =VLOOKUP(A35,CPU!$A$1:$N$4667,9) -> 3322.69 | H35: =VLOOKUP(A35,CPU!$A$1:$N$4667,10) -> 3821.09 | I35: =ROUND(F35*H35,2) -> 28639.07
A36: 22 | B36: 5.3 | C36: AQUISIÇÃO DE CONCRETO BETUMINOSO USINADO A QUENTE (CBUQ) PARA PAVIMENTACAO ASFALTICA, PADRAO DNIT, FAIXA C, COM CAP 50/70 - EXCLUSIVE TRANSPORTE | D36: CPU.8 | E36: T | F36: 1750.004 | G36: =VLOOKUP(A36,CPU!$A$1:$N$4667,9) -> 597.5 | H36: =VLOOKUP(A36,CPU!$A$1:$N$4667,10) -> 687.13 | I36: 1202480.25
B37: TOTAL GERAL DA OBRA COM BDI | I37: =SUM(I9,I15,I23,I28,I33) -> 2494606.33

Sheet CPU
A1: 1 | B1: CODEVASF | E1: COMPOSIÇÃO DE PREÇO UNITÁRIO | I1: =H11 -> 17031.18 | J1: =H13 -> 20667.34 | K1: BDI CALCULADO: | M1: =ORÇAMENTO!I6 -> 0.2135
B2: OBRA: | C2: =ORÇAMENTO!C5 -> PAVIMENTAÇÃO ASFÁLTICA EM CBUQ - AV. PAREDÃO DE MINAS (BURITIZEIRO / MG) | G2: DATA: | H2: =ORÇAMENTO!C6 -> AGOSTO / 2023 | K2: BDI DIFERENCIADO: | M2: ='BDI FORN'!D31/100 -> 0.15
B3: SERVIÇO: | C3: =VLOOKUP(A1,ORÇAMENTO!A10:I29,3) -> MOBILIZAÇÃO E DESMOBILIZAÇÃO | E3: Referência: | F3: CPU.1 | G3: UNIDADE: | H3: =VLOOKUP(A1,ORÇAMENTO!A10:I29,5) -> GL
B5: TIPO ITEM | C5: CODIGO ITEM | D5: DESCRIÇÃO ITEM | E5: UNIDADE ITEM | F5: COEFICIENTE | G5: PRECO UNITARIO | H5: CUSTO TOTAL
B6: COMPOSICAO | C6: 89876 | D6: CAMINHÃO BASCULANTE 14 M3, COM CAVALO MECÂNICO DE CAPACIDADE MÁXIMA DE TRAÇÃO COMBINADO DE 36000 KG, POTÊNCIA 286 CV, INCLUSIVE SEMIREBOQUE COM CAÇAMBA METÁLICA | E6: CHP DIURNO. | F6: 8 | G6: 287.48 | H6: =ROUNDDOWN(F6*G6,2) -> 2299.84
B7: COMPOSICAO | C7: 89877 | D7: CAMINHÃO BASCULANTE 14 M3, COM CAVALO MECÂNICO DE CAPACIDADE MÁXIMA DE TRAÇÃO COMBINADO DE 36000 KG, POTÊNCIA 286 CV, INCLUSIVE SEMIREBOQUE TRAÇÃO | E7: CHI DIURNO. | F7: 8 | G7: 82.59 | H7: =ROUNDDOWN(F7*G7,2) -> 660.72
B8: COMPOSICAO | C8: 5914640 | D8: TRANSPORTE COM CAVALO MECÂNICO COM SEMIRREBOQUE COM CAPACIDADE DE 30 T - RODOVIA PAVIMENTADA | E8: T.KM | F8: 9191 | G8: 0.57 | H8: 5238.87
B9: COMPOSIÇÃO | C9: 88316 | D9: SERVENTE COM ENCARGOS COMPLEMENTARES | E9: H | F9: 16 | G9: 19.76 | H9: 316.16
B10: PRODUÇÃO DA EQUIPE | E10: 0.5 | F10: CUSTO | H10: =SUM(H6:H9) -> 8515.59
B11: TOTAL | H11: =H10/E10 -> 17031.18 | I11: OK
B12: BDI % | H12: =1+$M$1 -> 1.2135
B13: TOTAL DO SERVIÇO - R$ | H13: =ROUND(H11*H12,2) -> 20667.34
A15: =A1+1 -> 2 | B15: CODEVASF | E15: COMPOSIÇÃO DE PREÇO UNITÁRIO | I15: =H30 -> 140379.6 | J15: =H32 -> 170350.64
B16: OBRA: | C16: =$C$2 -> PAVIMENTAÇÃO ASFÁLTICA EM CBUQ - AV. PAREDÃO DE MINAS (BURITIZEIRO / MG) | G16: DATA: | H16: =$H$2 -> AGOSTO / 2023
B17: SERVIÇO: | C17: =VLOOKUP(A15,ORÇAMENTO!$A$10:$I$29,3) -> ADMINISTRAÇÃO LOCAL | E17: SINAPI | F17: CPU.2 | G17: UNIDADE: | H17: =VLOOKUP(A15,ORÇAMENTO!$A$10:$I$29,5) -> GL
B19: TIPO ITEM | C19: CODIGO ITEM | D19: DESCRIÇÃO ITEM | E19: UNIDADE ITEM | F19: COEFICIENTE | G19: PRECO UNITARIO | H19: CUSTO TOTAL
B20: INSUMO | C20: 14250 | D20: ENERGIA ELÉTRICA | E20: kwh | F20: 60 | G20: 0.86 | H20: =ROUNDDOWN(F20*G20,2) -> 51.6
B21: INSUMO | C21: 44480 | D21: TARIFA FORNECIMENTO DE ÁGUA/ESGOTO | E21: M3 | F21: 6 | G21: 16.27 | H21: 97.62
B22: COTAÇÃO | C22: MERC. | D22: TELEFONE (PLANO CONTROLE) | E22: UNID | F22: 2 | G22: 59.99 | H22: 119.98
B23: INSUMO | C23: ED-50155 SEINFRA | D23: BANHEIRO QUÍMICO 110 X 120 X 230 CM COM MANUTENÇÃO (CONSIDERANDO OBRAS SIMULTÂNEAS) | E23: MÊS | F23: 2 | G23: 820 | H23: 1640
B24: COMPOSICAO | C24: 90777 | D24: Engenheiro Civil Júnior com encargos complementares | E24: H | F24: 55 | G24: 114.12 | H24: 6276.6
B25: COMPOSICAO | C25: 90776 | D25: Encarregado Geral com encargos complementares | E25: H | F25: 110 | G25: 57.73 | H25: 6350.3
B26: COMPOSICAO | C26: 88321 | D26: Tecnico de Laboratório com encargos complementares | E26: H | F26: 110 | G26: 45.67 | H26: 5023.7
B27: COMPOSICAO | C27: 100309 | D27: Tecnico em Segurança do Trabalho com encargos complementares | E27: H | F27: 55 | G27: 45.93 | H27: 2526.15
B28: COMPOSICAO | C28: 90772 | D28: Auxiliar de escritório com encargos complementares | E28: H | F28: 55 | G28: 23.83 | H28: 1310.65
B29: PRODUÇÃO DA EQUIPE | E29: =1/6 -> 0.1666666667 | F29: CUSTO | H29: =SUM(H20:H28) -> 23396.6
B30: TOTAL | H30: =ROUND(H29/E29,2) -> 140379.6 | I30: OK
B31: BDI % | H31: =1+$M$1 -> 1.2135
B32: TOTAL DO SERVIÇO - R$ | H32: =ROUND(H30*H31,2) -> 170350.64
A34: =A15+1 -> 3 | B34: CODEVASF | E34: COMPOSIÇÃO DE PREÇO UNITÁRIO | I34: =H46 -> 18107.4 | J34: =H48 -> 21973.33
B35: OBRA: | C35: =$C$2 -> PAVIMENTAÇÃO ASFÁLTICA EM CBUQ - AV. PAREDÃO DE MINAS (BURITIZEIRO / MG) | G35: DATA: | H35: =$H$2 -> AGOSTO / 2023
B36: SERVIÇO: | C36: =VLOOKUP(A34,ORÇAMENTO!$A$10:$I$29,3) -> CANTEIRO DE OBRAS | E36: SINAPI | F36: =VLOOKUP(A34,ORÇAMENTO!$A$10:$I$29,4) -> CPU.3 | G36: UNIDADE: | H36: =VLOOKUP(A34,ORÇAMENTO!$A$10:$I$29,5) -> GL
B38: TIPO ITEM | C38: CODIGO ITEM | D38: DESCRIÇÃO ITEM | E38: UNIDADE ITEM | F38: COEFICIENTE | G38: PRECO UNITARIO | H38: CUSTO TOTAL
B39: INSUMO | C39: 10775 | D39: LOCACAO DE CONTAINER COM 1 SANITARIO, PARA ESCRITORIO,COMPLETO, SEM DIVISORIAS INTERNAS | E39: MÊS | F39: 6 | G39: 1040 | H39: =ROUNDDOWN(F39*G39,2) -> 6240
B40: INSUMO | C40: 10779 | D40: LOCACAO DE CONTAINER P/ SANITARIO, C/ 5 BACIAS, 1 LAVATORIO E 4 MICTORIOS | E40: MÊS | F40: 6 | G40: 1300 | H40: 7800
B41: COMPOSIÇÃO | C41: 100382 | D41: FABRICAÇÃO E INSTALAÇÃO DE PONTALETES DE MADEIRA NÃO APARELHADA PARA TELHADOS COM TELHA ONDULADA DE FIBROCIMENTO | E41: M2 | F41: 48 | G41: 34.39 | H41: 1650.72
B42: COMPOSIÇÃO | C42: 94207 | D42: TELHAMENTO COM TELHA ONDULADA DE FIBROCIMENTO E = 6 MM | E42: M2 | F42: 48 | G42: 42.66 | H42: 2047.68
B43: INSUMO | C43: 37525 | D43: TELA PLASTICA TECIDA LISTRADA BRANCA E LARANJA, TIPO GUARDA CORPO, EM POLIETILENO MONOFILADO, ROLO 1,20 X 50 M (L X C) | E43: M | F43: 100 | G43: 3.69 | H43: 369
H44: 0
B45: PRODUÇÃO DA EQUIPE | E45: 1 | F45: CUSTO | H45: =SUM(H39:H44) -> 18107.4
B46: TOTAL | H46: =H45/E45 -> 18107.4 | I46: OK
B47: BDI % | H47: =1+$M$1 -> 1.2135
B48: TOTAL DO SERVIÇO - R$ | H48: =ROUND(H46*H47,2) -> 21973.33
A50: =A34+1 -> 4 | B50: CODEVASF | E50: COMPOSIÇÃO DE PREÇO UNITÁRIO | I50: =H64 -> 340.98 | J50: =H66 -> 413.78
B51: OBRA: | C51: =$C$2 -> PAVIMENTAÇÃO ASFÁLTICA EM CBUQ - AV. PAREDÃO DE MINAS (BURITIZEIRO / MG) | G51: DATA: | H51: =$H$2 -> AGOSTO / 2023
B52: SERVIÇO: | C52: =VLOOKUP(A50,ORÇAMENTO!$A$10:$I$29,3) -> PLACA DE OBRA EM CHAPA DE AÇO GALVANIZADO | E52: SINAPI | F52: =VLOOKUP(A50,ORÇAMENTO!$A$10:$I$29,4) -> 103689 | G52: UNIDADE: | H52: =VLOOKUP(A50,ORÇAMENTO!$A$10:$I$29,5) -> M2
B54: TIPO ITEM | C54: CODIGO ITEM | D54: DESCRIÇÃO ITEM | E54: UNIDADE ITEM | F54: COEFICIENTE | G54: PRECO UNITARIO | H54: CUSTO TOTAL
B55: INSUMO | C55: 4509 | D55: SARRAFO *2,5 X 10* CM EM PINUS, MISTA OU EQUIVALENTE DA REGIAO - BRUTA | E55: M | F55: 3,2083000 | G55: 4,39 | H55: =ROUNDDOWN(F55*G55,2) -> 14.08
B56: INSUMO | C56: 4813 | D56: PLACA DE OBRA (PARA CONSTRUCAO CIVIL) EM CHAPA GALVANIZADA *N. 22*, ADESIVADA, DE *2,4 X 1,2* M (SEM POSTES PARA FIXACAO) | E56: M2 | F56: 1,0000000 | G56: 250,00 | H56: 250
B57: INSUMO | C57: 5065 | D57: PREGO DE ACO POLIDO COM CABECA 10 X 10 | E57: KG | F57: 0,0113000 | G57: 38,80 | H57: 0.43
B58: INSUMO | C58: 5069 | D58: PREGO DE ACO POLIDO COM CABECA 17 X 27 | E58: KG | F58: 0,0132000 | G58: 20,79 | H58: 0.27
B59: COMPOSICAO | C59: 88262 | D59: CARPINTEIRO DE FORMAS COM ENCARGOS COMPLEMENTARES | E59: H | F59: 0,3729000 | G59: 27,05 | H59: 10.08
B60: COMPOSICAO | C60: 88316 | D60: SERVENTE COM ENCARGOS COMPLEMENTARES | E60: H | F60: 1,1186000 | G60: 19,76 | H60: 22.1
B61: COMPOSICAO | C61: 4115 | D61: MADEIRA ROLICA TRATADA, D = 12 A 15 CM, H = 3,00 M, EM EUCALIPTO OU EQUIVALENTE | E61: M | F61: 2 | G61: 22.01 | H61: 44.02
H62: 0
B63: PRODUÇÃO DA EQUIPE | E63: 1 | F63: CUSTO | H63: =SUM(H55:H62) -> 340.98
B64: TOTAL | H64: =H63/E63 -> 340.98 | I64: OK
B65: BDI % | H65: =1+$M$1 -> 1.2135
B66: TOTAL DO SERVIÇO - R$ | H66: =ROUND(H64*H65,2) -> 413.78
A68: =A50+1 -> 5 | B68: CODEVASF | E68: COMPOSIÇÃO DE PREÇO UNITÁRIO | I68: =H76 -> 0.66 | J68: =H78 -> 0.8
B69: OBRA: | C69: =$C$2 -> PAVIMENTAÇÃO ASFÁLTICA EM CBUQ - AV. PAREDÃO DE MINAS (BURITIZEIRO / MG) | G69: DATA: | H69: =$H$2 -> AGOSTO / 2023
B70: SERVIÇO: | C70: =VLOOKUP(A68,ORÇAMENTO!$A$10:$I$29,3) -> LOCAÇÃO DE PAVIMENTAÇÃO | E70: SINAPI | F70: =VLOOKUP(A68,ORÇAMENTO!$A$10:$I$29,4) -> 99064 | G70: UNIDADE: | H70: =VLOOKUP(A68,ORÇAMENTO!$A$10:$I$29,5) -> M
B72: TIPO ITEM | C72: CODIGO ITEM | D72: DESCRIÇÃO ITEM | E72: UNIDADE ITEM | F72: COEFICIENTE | G72: PRECO UNITARIO | H72: CUSTO TOTAL
B73: COMPOSICAO | C73: 99058 | D73: LOCAÇÃO DE PONTO PARA REFERÊNCIA TOPOGRÁFICA | E73: UN | F73: 0,0500000 | G73: 13.37 | H73: =ROUNDDOWN(F73*G73,2) -> 0.66
H74: =ROUNDDOWN(F74*G74,2) -> 0
B75: PRODUÇÃO DA EQUIPE | E75: 1 | F75: CUSTO | H75: =SUM(H73:H74) -> 0.66
B76: TOTAL | H76: =H75/E75 -> 0.66 | I76: OK
B77: BDI % | H77: =1+$M$1 -> 1.2135
B78: TOTAL DO SERVIÇO - R$ | H78: =ROUND(H76*H77,2) -> 0.8
A80: =A68+1 -> 6 | B80: CODEVASF | E80: COMPOSIÇÃO DE PREÇO UNITÁRIO | I80: =H89 -> 1.87 | J80: =H91 -> 2.27
B81: OBRA: | C81: =$C$2 -> PAVIMENTAÇÃO ASFÁLTICA EM CBUQ - AV. PAREDÃO DE MINAS (BURITIZEIRO / MG) | G81: DATA: | H81: =$H$2 -> AGOSTO / 2023
B82: SERVIÇO: | C82: =VLOOKUP(A80,ORÇAMENTO!$A$10:$I$29,3) -> ESCAVAÇÃO HORIZONTAL EM SOLO DE 1A CATEGORIA | E82: SINAPI | F82: =VLOOKUP(A80,ORÇAMENTO!$A$10:$I$29,4) -> 101116 | G82: UNIDADE: | H82: =VLOOKUP(A80,ORÇAMENTO!$A$10:$I$29,5) -> M3
B84: TIPO ITEM | C84: CODIGO ITEM | D84: DESCRIÇÃO ITEM | E84: UNIDADE ITEM | F84: COEFICIENTE | G84: PRECO UNITARIO | H84: CUSTO TOTAL
B85: COMPOSICAO | C85: 5847 | D85: TRATOR DE ESTEIRAS, POTÊNCIA 170 HP, PESO OPERACIONAL 19 T, CAÇAMBA 5,2 M3 | E85: CHP | F85: 0,0048000 | G85: 217,11 | H85: =ROUNDDOWN(F85*G85,2) -> 1.04
B86: COMPOSICAO | C86: 5849 | D86: TRATOR DE ESTEIRAS, POTÊNCIA 170 HP, PESO OPERACIONAL 19 T, CAÇAMBA 5,2 M3 | E86: CHI | F86: 0,0082000 | G86: 71,35 | H86: 0.58
B87: COMPOSICAO | C87: 88316 | D87: SERVENTE COM ENCARGOS COMPLEMENTARES | E87: H | F87: 0,0131000 | G87: 19,76 | H87: 0.25
B88: PRODUÇÃO DA EQUIPE | E88: 1 | F88: CUSTO | H88: =SUM(H85:H87) -> 1.87
B89: TOTAL | H89: =H88/E88 -> 1.87 | I89: OK
B90: BDI % | H90: =1+$M$1 -> 1.2135
B91: TOTAL DO SERVIÇO - R$ | H91: =ROUND(H89*H90,2) -> 2.27
A93: 7 | B93: CODEVASF | E93: COMPOSIÇÃO DE PREÇO UNITÁRIO | I93: =H103 -> 6.49 | J93: =H105 -> 7.88
B94: OBRA: | C94: =$C$2 -> PAVIMENTAÇÃO ASFÁLTICA EM CBUQ - AV. PAREDÃO DE MINAS (BURITIZEIRO / MG) | G94: DATA: | H94: =$H$2 -> AGOSTO / 2023
B95: SERVIÇO: | C95: =VLOOKUP(A93,ORÇAMENTO!$A$10:$I$29,3) -> CARGA, MANOBRA E DESCARGA DE SOLOS E MATERIAIS GRANULARES EM CAMINHÃO BASCULANTE | E95: SINAPI | F95: =VLOOKUP(A93,ORÇAMENTO!$A$10:$I$29,4) -> 100976 | G95: UNIDADE: | H95: =VLOOKUP(A93,ORÇAMENTO!$A$10:$I$29,5) -> M3
B97: TIPO ITEM | C97: CODIGO ITEM | D97: DESCRIÇÃO ITEM | E97: UNIDADE ITEM | F97: COEFICIENTE | G97: PRECO UNITARIO | H97: CUSTO TOTAL
B98: COMPOSICAO | C98: 5940 | D98: PÁ CARREGADEIRA SOBRE RODAS, POTÊNCIA LÍQUIDA 128 HP, CAPACIDADE DA CAÇAMBA 1,7 A 2,8 M3, PESO OPERACIONAL 11632 KG | E98: CHP | F98: 0,0083000 | G98: 203,10 | H98: =ROUNDDOWN(F98*G98,2) -> 1.68
B99: COMPOSICAO | C99: 5942 | D99: PÁ CARREGADEIRA SOBRE RODAS, POTÊNCIA LÍQUIDA 128 HP, CAPACIDADE DA CAÇAMBA 1,7 A 2,8 M3, PESO OPERACIONAL 11632 KG | E99: CHI | F99: 0,0074000 | G99: 83,73 | H99: 0.61
B100: COMPOSICAO | C100: 89883 | D100: CAMINHÃO BASCULANTE 18 M3, COM CAVALO MECÂNICO DE CAPACIDADE MÁXIMA DE TRAÇÃO COMBINADO DE 45000 KG, POTÊNCIA 330 CV, INCLUSIVE SEMIREBOQUE COM CAÇAMBA METÁLICA | E100: CHP | F100: 0.010753 | G100: 316,09 | H100: 3.39
B101: COMPOSICAO | C101: 89884 | D101: CAMINHÃO BASCULANTE 18 M3, COM CAVALO MECÂNICO DE CAPACIDADE MÁXIMA DE TRAÇÃO COMBINADO DE 45000 KG, POTÊNCIA 330 CV, INCLUSIVE SEMIREBOQUE COM CAÇAMBA METÁLICA | E101: CHI | F101: 0,0095000 | G101: 86,09 | H101: 0.81
B102: PRODUÇÃO DA EQUIPE | E102: 1 | F102: CUSTO | H102: =SUM(H98:H101) -> 6.49
B103: TOTAL | H103: =H102/E102 -> 6.49 | I103: OK
B104: BDI % | H104: =1+$M$1 -> 1.2135
B105: TOTAL DO SERVIÇO - R$ | H105: =ROUND(H103*H104,2) -> 7.88
A107: 8 | B107: CODEVASF | E107: COMPOSIÇÃO DE PREÇO UNITÁRIO | I107: =H121 -> 1.08 | J107: =H123 -> 1.31
B108: OBRA: | C108: =$C$2 -> PAVIMENTAÇÃO ASFÁLTICA EM CBUQ - AV. PAREDÃO DE MINAS (BURITIZEIRO / MG) | G108: DATA: | H108: =$H$2 -> AGOSTO / 2023
B109: SERVIÇO: | C109: =VLOOKUP(A107,ORÇAMENTO!$A$10:$I$29,3) -> REGULARIZAÇÃO E COMPACTAÇÃO DO SUBLEITO | E109: SICRO | F109: =VLOOKUP(A107,ORÇAMENTO!$A$10:$I$29,4) -> 100577 | G109: UNIDADE: | H109: M2
B111: TIPO ITEM | C111: CODIGO ITEM | D111: DESCRIÇÃO ITEM | E111: UNIDADE ITEM | F111: COEFICIENTE | G111: PRECO UNITARIO | H111: CUSTO TOTAL
B112: COMPOSICAO | C112: 5901 | D112: CAMINHÃO PIPA 10.000 L TRUCADO, PESO BRUTO TOTAL 23.000 KG, CARGA ÚTIL MÁXIMA 15.935 KG, DISTÂNCIA ENTRE EIXOS 4,8 M, POTÊNCIA 230 CV, INCLUSIVE TANQUE DE AÇO PARA TRANSPORTE DE ÁGUA | E112: CHP | F112: 0,0010000 | G112: 267,67 | H112: =ROUNDDOWN(F112*G112,2) -> 0.26
B113: COMPOSICAO | C113: 5903 | D113: CAMINHÃO PIPA 10.000 L TRUCADO, PESO BRUTO TOTAL 23.000 KG, CARGA ÚTIL MÁXIMA 15.935 KG, DISTÂNCIA ENTRE EIXOS 4,8 M, POTÊNCIA 230 CV, INCLUSIVE TANQUE DE AÇO PARA TRANSPORTE DE ÁGUA | E113: CHI | F113: 0,0020000 | G113: 67,79 | H113: =ROUNDDOWN(F113*G113,2) -> 0.13
B114: COMPOSICAO | C114: 5932 | D114: MOTONIVELADORA POTÊNCIA BÁSICA LÍQUIDA (PRIMEIRA MARCHA) 125 HP, PESO BRUTO 13032 KG, LARGURA DA LÂMINA DE 3,7 M | E114: CHP | F114: 0,0001000 | G114: 236,38 | H114: 0.02
B115: COMPOSICAO | C115: 5934 | D115: MOTONIVELADORA POTÊNCIA BÁSICA LÍQUIDA (PRIMEIRA MARCHA) 125 HP, PESO BRUTO 13032 KG, LARGURA DA LÂMINA DE 3,7 M | E115: CHI | F115: 0,0030000 | G115: 92,27 | H115: 0.27
B116: COMPOSICAO | C116: 88316 | D116: SERVENTE COM ENCARGOS COMPLEMENTARES | E116: H | F116: 0,0030000 | G116: 19,76 | H116: 0.05
B117: COMPOSICAO | C117: 96463 | D117: ROLO COMPACTADOR DE PNEUS, ESTATICO, PRESSAO VARIAVEL, POTENCIA 110 HP, PESO SEM/COM LASTRO 10,8/27 T, LARGURA DE ROLAGEM 2,30 M | E117: CHP | F117: 0,0010000 | G117: 197,38 | H117: 0.19
B118: COMPOSICAO | C118: 96464 | D118: ROLO COMPACTADOR DE PNEUS, ESTATICO, PRESSAO VARIAVEL, POTENCIA 110 HP, PESO SEM/COM LASTRO 10,8/27 T, LARGURA DE ROLAGEM 2,30 M | E118: CHI | F118: 0,0020000 | G118: 82,85 | H118: 0.16
B120: PRODUÇÃO DA EQUIPE | E120: 1 | F120: CUSTO | H120: =SUM(H112:H119) -> 1.08
B121: TOTAL | H121: =H120/E120 -> 1.08 | I121: OK
B122: BDI % | H122: =1+$M$1 -> 1.2135
B123: TOTAL DO SERVIÇO - R$ | H123: =ROUND(H121*H122,2) -> 1.31
A125: 9 | B125: CODEVASF | E125: COMPOSIÇÃO DE PREÇO UNITÁRIO | I125: =H142 -> 11.09 | J125: =H144 -> 13.46
B126: OBRA: | C126: =$C$2 -> PAVIMENTAÇÃO ASFÁLTICA EM CBUQ - AV. PAREDÃO DE MINAS (BURITIZEIRO / MG) | G126: DATA: | H126: =$H$2 -> AGOSTO / 2023
B127: SERVIÇO: | C127: =VLOOKUP(A125,ORÇAMENTO!$A$10:$I$29,3) -> EXECUÇÃO E COMPACTAÇÃO DE BASE E OU SUB BASE PARA PAVIMENTAÇÃO DE SOLOS DE COMPORTAMENTO LATERÍTICO - EXCLUSIVE SOLO, ESCAVAÇÃO, CARGA E TRANSPORTE (CASCALHO FORNECIDO PELA PREFEITURA) | E127: SINAPI | F127: =VLOOKUP(A125,ORÇAMENTO!$A$10:$I$29,4) -> 96388 | G127: UNIDADE: | H127: =VLOOKUP(A125,ORÇAMENTO!$A$10:$I$29,5) -> M3
B129: TIPO ITEM | C129: CODIGO ITEM | D129: DESCRIÇÃO ITEM | E129: UNIDADE ITEM | F129: COEFICIENTE | G129: PRECO UNITARIO | H129: CUSTO TOTAL
B130: COMPOSICAO | C130: 5684 | D130: ROLO COMPACTADOR VIBRATÓRIO DE UM CILINDRO AÇO LISO, POTÊNCIA 80 HP, PESO OPERACIONAL MÁXIMO 8,1 T, IMPACTO DINÂMICO 16,15 / 9,5 T, LARGURA DE TRABALHO 1,68 M | E130: CHP | F130: 0,0030000 | G130: 142,77 | H130: =ROUNDDOWN(F130*G130,2) -> 0.42
B131: COMPOSICAO | C131: 5685 | D131: ROLO COMPACTADOR VIBRATÓRIO DE UM CILINDRO AÇO LISO, POTÊNCIA 80 HP, PESO OPERACIONAL MÁXIMO 8,1 T, IMPACTO DINÂMICO 16,15 / 9,5 T, LARGURA DE TRABALHO 1,68 M | E131: CHI | F131: 0,0230000 | G131: 59,30 | H131: 1.36
B132: COMPOSICAO | C132: 5901 | D132: CAMINHÃO PIPA 10.000 L TRUCADO, PESO BRUTO TOTAL 23.000 KG, CARGA ÚTIL MÁXIMA 15.935 KG, DISTÂNCIA ENTRE EIXOS 4,8 M, POTÊNCIA 230 CV, INCLUSIVE TANQUE DE AÇO PARA TRANSPORTE DE ÁGUA | E132: CHP | F132: 0,0040000 | G132: 267,67 | H132: 1.07
B133: COMPOSICAO | C133: 5903 | D133: CAMINHÃO PIPA 10.000 L TRUCADO, PESO BRUTO TOTAL 23.000 KG, CARGA ÚTIL MÁXIMA 15.935 KG, DISTÂNCIA ENTRE EIXOS 4,8 M, POTÊNCIA 230 CV, INCLUSIVE TANQUE DE AÇO PARA TRANSPORTE DE ÁGUA | E133: CHI | F133: 0,0220000 | G133: 67,79 | H133: 1.49
B134: COMPOSICAO | C134: 5932 | D134: MOTONIVELADORA POTÊNCIA BÁSICA LÍQUIDA (PRIMEIRA MARCHA) 125 HP, PESO BRUTO 13032 KG, LARGURA DA LÂMINA DE 3,7 M | E134: CHP | F134: 0,0080000 | G134: 236,38 | H134: 1.89
B135: COMPOSICAO | C135: 5934 | D135: MOTONIVELADORA POTÊNCIA BÁSICA LÍQUIDA (PRIMEIRA MARCHA) 125 HP, PESO BRUTO 13032 KG, LARGURA DA LÂMINA DE 3,7 M | E135: CHI | F135: 0,0190000 | G135: 92,27 | H135: 1.75
B136: INSUMO | D136: CASCALHO DE CAVA (FORNECIMENTO PREFEITURA) | E136: M3 | F136: 1 | H136: 0
B137: COMPOSICAO | C137: 88316 | D137: SERVENTE COM ENCARGOS COMPLEMENTARES | E137: H | F137: 0,0260000 | G137: 19,76 | H137: 0.51
B138: COMPOSICAO | C138: 96463 | D138: ROLO COMPACTADOR DE PNEUS, ESTATICO, PRESSAO VARIAVEL, POTENCIA 110 HP, PESO SEM/COM LASTRO 10,8/27 T, LARGURA DE ROLAGEM 2,30 M | E138: CHP | F138: 0,0040000 | G138: 197,38 | H138: 0.78
B139: COMPOSICAO | C139: 96464 | D139: ROLO COMPACTADOR DE PNEUS, ESTATICO, PRESSAO VARIAVEL, POTENCIA 110 HP, PESO SEM/COM LASTRO 10,8/27 T, LARGURA DE ROLAGEM 2,30 M | E139: CHI | F139: 0,0220000 | G139: 82,85 | H139: 1.82
H140: 0
B141: PRODUÇÃO DA EQUIPE | E141: 1 | F141: CUSTO | H141: =SUM(H130:H140) -> 11.09
B142: TOTAL | H142: =H141/E141 -> 11.09 | I142: OK
B143: BDI % | H143: =1+$M$1 -> 1.2135
B144: TOTAL DO SERVIÇO - R$ | H144: =ROUND(H142*H143,2) -> 13.46
A146: 10 | B146: CODEVASF | E146: COMPOSIÇÃO DE PREÇO UNITÁRIO | I146: =H161 -> 1.11 | J146: =H163 -> 1.35
B147: OBRA: | C147: =$C$2 -> PAVIMENTAÇÃO ASFÁLTICA EM CBUQ - AV. PAREDÃO DE MINAS (BURITIZEIRO / MG) | G147: DATA: | H147: =$H$2 -> AGOSTO / 2023
B148: SERVIÇO: | C148: =VLOOKUP(A146,ORÇAMENTO!$A$10:$I$29,3) -> IMPRIMAÇÃO COM EMULSÃO ASFÁLTICA (EAI) | E148: SINAPI | F148: =VLOOKUP(A146,ORÇAMENTO!$A$10:$I$29,4) -> 96401 | G148: UNIDADE: | H148: =VLOOKUP(A146,ORÇAMENTO!$A$10:$I$29,5) -> M2
B150: TIPO ITEM | C150: CODIGO ITEM | D150: DESCRIÇÃO ITEM | E150: UNIDADE ITEM | F150: COEFICIENTE | G150: PRECO UNITARIO | H150: CUSTO TOTAL
B151: COMPOSICAO | C151: 5839 | D151: VASSOURA MECÂNICA REBOCÁVEL COM ESCOVA CILÍNDRICA, LARGURA ÚTIL DE VARRIMENTO DE 2,44 M | E151: CHP | F151: 0,0020000 | G151: 10.13 | H151: =ROUNDDOWN(F151*G151,2) -> 0.02
B152: COMPOSICAO | C152: 5841 | D152: VASSOURA MECÂNICA REBOCÁVEL COM ESCOVA CILÍNDRICA, LARGURA ÚTIL DE VARRIMENTO DE 2,44 M | E152: CHI | F152: 0,0040000 | G152: 4.82 | H152: 0.01
B153: INSUMO | C153: ANP | D153: EMULSÃO ASFÁLTICA PARA IMPRIMAÇÃO (FORNECIMENTO COM BDI DIFERENCIADO) | E153: T | F153: =1.3/1000 -> 0.0013 | H153: 0
B154: COMPOSICAO | C154: 83362 | D154: ESPARGIDOR DE ASFALTO PRESSURIZADO, TANQUE 6 M3 COM ISOLAÇÃO TÉRMICA, AQUECIDO COM 2 MAÇARICOS, COM BARRA ESPARGIDORA 3,60 M, MONTADO SOBRE CAMINHÃO TOCO, PBT 14.300 KG, POTÊNCIA 185 CV | E154: CHP | F154: 0,0010000 | G154: 234.41 | H154: 0.23
B155: COMPOSICAO | C155: 88316 | D155: SERVENTE COM ENCARGOS COMPLEMENTARES | E155: H | F155: 0,0060000 | G155: 19.76 | H155: 0.11
B156: COMPOSICAO | C156: 89035 | D156: TRATOR DE PNEUS, POTÊNCIA 85 CV, TRAÇÃO 4X4, PESO COM LASTRO DE 4.675 KG | E156: CHP | F156: 0,0020000 | G156: 117.41 | H156: 0.23
B157: COMPOSICAO | C157: 89036 | D157: TRATOR DE PNEUS, POTÊNCIA 85 CV, TRAÇÃO 4X4, PESO COM LASTRO DE 4.675 KG | E157: CHI | F157: 0,0040000 | G157: 46.92 | H157: 0.18
B158: COMPOSICAO | C158: 91486 | D158: ESPARGIDOR DE ASFALTO PRESSURIZADO, TANQUE 6 M3 COM ISOLAÇÃO TÉRMICA, AQUECIDO COM 2 MAÇARICOS, COM BARRA ESPARGIDORA 3,60 M, MONTADO SOBRE CAMINHÃO TOCO, PBT 14.300 KG, POTÊNCIA 185 CV | E158: CHI | F158: 0,0050000 | G158: 66.12 | H158: 0.33
H159: 0
B160: PRODUÇÃO DA EQUIPE | E160: 1 | F160: CUSTO | H160: =SUM(H151:H159) -> 1.11
B161: TOTAL | H161: =H160/E160 -> 1.11 | I161: OK
B162: BDI % | H162: =1+$M$1 -> 1.2135
B163: TOTAL DO SERVIÇO - R$ | H163: =ROUND(H161*H162,2) -> 1.35
A165: 11 | B165: CODEVASF | E165: COMPOSIÇÃO DE PREÇO UNITÁRIO | I165: =H180 -> 0.91 | J165: =H182 -> 1.1
B166: OBRA: | C166: =$C$2 -> PAVIMENTAÇÃO ASFÁLTICA EM CBUQ - AV. PAREDÃO DE MINAS (BURITIZEIRO / MG) | G166: DATA: | H166: =$H$2 -> AGOSTO / 2023
B167: SERVIÇO: | C167: =VLOOKUP(A165,ORÇAMENTO!$A$10:$I$29,3) -> PINTURA DE LIGAÇÃO COM EMULSÃO ASFÁLTICA RR-2C | E167: SINAPI | F167: =VLOOKUP(A165,ORÇAMENTO!$A$10:$I$29,4) -> 96402 | G167: UNIDADE: | H167: M2
B169: TIPO ITEM | C169: CODIGO ITEM | D169: DESCRIÇÃO ITEM | E169: UNIDADE ITEM | F169: COEFICIENTE | G169: PRECO UNITARIO | H169: CUSTO TOTAL
B170: COMPOSICAO | C170: 5839 | D170: VASSOURA MECÂNICA REBOCÁVEL COM ESCOVA CILÍNDRICA, LARGURA ÚTIL DE VARRIMENTO DE 2,44 M | E170: CHP | F170: 0,0020000 | G170: 10.13 | H170: =ROUNDDOWN(F170*G170,2) -> 0.02
B171: COMPOSICAO | C171: 5841 | D171: VASSOURA MECÂNICA REBOCÁVEL COM ESCOVA CILÍNDRICA, LARGURA ÚTIL DE VARRIMENTO DE 2,44 M | E171: CHI | F171: 0,0040000 | G171: 4.82 | H171: 0.01
B172: INSUMO | C172: ANP | D172: EMULSAO ASFALTICA CATIONICA RR-2C PARA USO EM PAVIMENTACAO ASFALTICA (COLETADO CAIXA NA ANP ACRESCIDO DE ICMS) | E172: KG | F172: 0,4500000 | H172: 0
B173: COMPOSICAO | C173: 83362 | D173: ESPARGIDOR DE ASFALTO PRESSURIZADO, TANQUE 6 M3 COM ISOLAÇÃO TÉRMICA, AQUECIDO COM 2 MAÇARICOS, COM BARRA ESPARGIDORA 3,60 M, MONTADO SOBRE CAMINHÃO TOCO, PBT 14.300 KG, POTÊNCIA 185 CV | E173: CHP | F173: 0,0004000 | G173: 234.41 | H173: 0.09
B174: COMPOSICAO | C174: 88316 | D174: SERVENTE COM ENCARGOS COMPLEMENTARES | E174: H | F174: 0,0055000 | G174: 19.76 | H174: 0.1
B175: COMPOSICAO | C175: 89035 | D175: TRATOR DE PNEUS, POTÊNCIA 85 CV, TRAÇÃO 4X4, PESO COM LASTRO DE 4.675 KG | E175: CHP | F175: 0,0017000 | G175: 117.41 | H175: 0.19
B176: COMPOSICAO | C176: 89036 | D176: TRATOR DE PNEUS, POTÊNCIA 85 CV, TRAÇÃO 4X4, PESO COM LASTRO DE 4.675 KG | E176: CHI | F176: 0,0038000 | G176: 46.92 | H176: 0.17
B177: COMPOSICAO | C177: 91486 | D177: ESPARGIDOR DE ASFALTO PRESSURIZADO, TANQUE 6 M3 COM ISOLAÇÃO TÉRMICA, AQUECIDO COM 2 MAÇARICOS, COM BARRA ESPARGIDORA 3,60 M, MONTADO SOBRE CAMINHÃO TOCO, PBT 14.300 KG, POTÊNCIA 185 CV | E177: CHI | F177: 0,0051000 | G177: 66.12 | H177: 0.33
H178: 0
B179: PRODUÇÃO DA EQUIPE | E179: 1 | F179: CUSTO | H179: =SUM(H170:H178) -> 0.91
B180: TOTAL | H180: =H179/E179 -> 0.91 | I180: OK
B181: BDI % | H181: =1+$M$1 -> 1.2135
B182: TOTAL DO SERVIÇO - R$ | H182: =ROUND(H180*H181,2) -> 1.1
A184: 12 | B184: CODEVASF | E184: COMPOSIÇÃO DE PREÇO UNITÁRIO | I184: =H202 -> 111.82 | J184: =H204 -> 135.69
B185: OBRA: | C185: =$C$2 -> PAVIMENTAÇÃO ASFÁLTICA EM CBUQ - AV. PAREDÃO DE MINAS (BURITIZEIRO / MG) | G185: DATA: | H185: =$H$2 -> AGOSTO / 2023
B186: SERVIÇO: | C186: =VLOOKUP(A184,ORÇAMENTO!$A$10:$I$29,3) -> EXECUÇÃO DE PAVIMENTO COM APLICAÇÃO DE CONCRETO ASFÁLTICO USINADO A QUENTE (CBUQ), CAMADA DE ROLAMENTO - EXCLUSIVE TRANSPORTE | E186: SINAPI | F186: =VLOOKUP(A184,ORÇAMENTO!$A$10:$I$29,4) -> 95995 | G186: UNIDADE: | H186: =VLOOKUP(A184,ORÇAMENTO!$A$10:$I$29,5) -> M3
B188: TIPO ITEM | C188: CODIGO ITEM | D188: DESCRIÇÃO ITEM | E188: UNIDADE ITEM | F188: COEFICIENTE | G188: PRECO UNITARIO | H188: CUSTO TOTAL
B189: INSUMO | C189: COTAÇÃO | D189: CONCRETO BETUMINOSO USINADO A QUENTE (CBUQ) PARA PAVIMENTACAO ASFALTICA, PADRAO DNIT, FAIXA C, COM CAP 50/70 - AQUISICAO POSTO USINA (FORNECIMENTO COM BDI DIFERENCIADO) | E189: T | F189: 2,5548000 | H189: =ROUNDDOWN(F189*G189,2) -> 0
B190: COMPOSICAO | C190: 5835 | D190: VIBROACABADORA DE ASFALTO SOBRE ESTEIRAS, LARGURA DE PAVIMENTAÇÃO 1,90 M A 5,30 M, POTÊNCIA 105 HP CAPACIDADE 450 T/H | E190: CHP | F190: 0,0464000 | G190: 357,51 | H190: 16.58
B191: COMPOSICAO | C191: 5837 | D191: VIBROACABADORA DE ASFALTO SOBRE ESTEIRAS, LARGURA DE PAVIMENTAÇÃO 1,90 M A 5,30 M, POTÊNCIA 105 HP CAPACIDADE 450 T/H | E191: CHI | F191: 0,0949000 | G191: 139,09 | H191: 13.19
B192: COMPOSICAO | C192: 88314 | D192: RASTELEIRO COM ENCARGOS COMPLEMENTARES | E192: H | F192: 1,1301000 | G192: 21,21 | H192: 23.96
B193: COMPOSICAO | C193: 91386 | D193: CAMINHÃO BASCULANTE 10 M3, TRUCADO CABINE SIMPLES, PESO BRUTO TOTAL 23.000 KG, CARGA ÚTIL MÁXIMA 15.935 KG, DISTÂNCIA ENTRE EIXOS 4,80 M, POTÊNCIA 230 CV INCLUSIVE CAÇAMBA METÁLICA | E193: CHP | F193: 0,0464000 | G193: 229,56 | H193: 10.65
B194: COMPOSICAO | C194: 95631 | D194: ROLO COMPACTADOR VIBRATORIO TANDEM, ACO LISO, POTENCIA 125 HP, PESO SEM/COM LASTRO 10,20/11,65 T, LARGURA DE TRABALHO 1,73 M | E194: CHP | F194: 0,0805000 | G194: 204,82 | H194: 16.48
B195: COMPOSICAO | C195: 95632 | D195: ROLO COMPACTADOR VIBRATORIO TANDEM, ACO LISO, POTENCIA 125 HP, PESO SEM/COM LASTRO 10,20/11,65 T, LARGURA DE TRABALHO 1,73 M | E195: CHI | F195: 0,0607000 | G195: 77,02 | H195: 4.67
B196: COMPOSICAO | C196: 96155 | D196: TRATOR DE PNEUS COM POTÊNCIA DE 85 CV, TRAÇÃO 4X4, COM VASSOURA MECÂNICA ACOPLADA | E196: CHI | F196: 0,1071000 | G196: 51,52 | H196: 5.51
B197: COMPOSICAO | C197: 96157 | D197: TRATOR DE PNEUS COM POTÊNCIA DE 85 CV, TRAÇÃO 4X4, COM VASSOURA MECÂNICA ACOPLADA | E197: CHP | F197: 0,0341000 | G197: 126,43 | H197: 4.31
B198: COMPOSICAO | C198: 96463 | D198: ROLO COMPACTADOR DE PNEUS, ESTATICO, PRESSAO VARIAVEL, POTENCIA 110 HP, PESO SEM/COM LASTRO 10,8/27 T, LARGURA DE ROLAGEM 2,30 M | E198: CHP | F198: 0,0419000 | G198: 197,38 | H198: 8.27
B199: COMPOSICAO | C199: 96464 | D199: ROLO COMPACTADOR DE PNEUS, ESTATICO, PRESSAO VARIAVEL, POTENCIA 110 HP, PESO SEM/COM LASTRO 10,8/27 T, LARGURA DE ROLAGEM 2,30 M | E199: CHI | F199: 0,0990000 | G199: 82,85 | H199: 8.2
H200: 0
B201: PRODUÇÃO DA EQUIPE | E201: 1 | F201: CUSTO | H201: =SUM(H189:H200) -> 111.82
B202: TOTAL | H202: =H201/E201 -> 111.82 | I202: OK
B203: BDI % | H203: =1+$M$1 -> 1.2135
B204: TOTAL DO SERVIÇO - R$ | H204: =ROUND(H202*H203,2) -> 135.69
A206: 13 | B206: CODEVASF | E206: COMPOSIÇÃO DE PREÇO UNITÁRIO | I206: =H215 -> 1.62 | J206: =H217 -> 1.97
B207: OBRA: | C207: =$C$2 -> PAVIMENTAÇÃO ASFÁLTICA EM CBUQ - AV. PAREDÃO DE MINAS (BURITIZEIRO / MG) | G207: DATA: | H207: =$H$2 -> AGOSTO / 2023
B208: SERVIÇO: | C208: =VLOOKUP(A206,ORÇAMENTO!$A$10:$I$29,3) -> TRANSPORTE COM CAMINHÃO BASCULANTE, EM VIA URBANA PAVIMENTADA | E208: SINAPI | F208: =VLOOKUP(A206,ORÇAMENTO!$A$10:$I$29,4) -> 95877 | G208: UNIDADE: | H208: =VLOOKUP(A206,ORÇAMENTO!$A$10:$I$29,5) -> M3XKM
B210: TIPO ITEM | C210: CODIGO ITEM | D210: DESCRIÇÃO ITEM | E210: UNIDADE ITEM | F210: COEFICIENTE | G210: PRECO UNITARIO | H210: CUSTO TOTAL
B211: COMPOSICAO | C211: 89883 | D211: CAMINHÃO BASCULANTE 18 M3, COM CAVALO MECÂNICO DE CAPACIDADE MÁXIMA DE TRAÇÃO COMBINADO DE 45000 KG, POTÊNCIA 330 CV, INCLUSIVE SEMIREBOQUE COM CAÇAMBA METÁLICA | E211: CHP | F211: 0,0046000 | G211: 316,09 | H211: =ROUNDDOWN(F211*G211,2) -> 1.45
B212: COMPOSICAO | C212: 89884 | D212: CAMINHÃO BASCULANTE 18 M3, COM CAVALO MECÂNICO DE CAPACIDADE MÁXIMA DE TRAÇÃO COMBINADO DE 45000 KG, POTÊNCIA 330 CV, INCLUSIVE SEMIREBOQUE COM CAÇAMBA METÁLICA | E212: CHI | F212: 0,0020000 | G212: 86,09 | H212: 0.17
H213: 0
B214: PRODUÇÃO DA EQUIPE | E214: 1 | F214: CUSTO | H214: =SUM(H211:H213) -> 1.62
B215: TOTAL | H215: =H214/E214 -> 1.62 | I215: OK
B216: BDI % | H216: =1+$M$1 -> 1.2135
B217: TOTAL DO SERVIÇO - R$ | H217: =ROUND(H215*H216,2) -> 1.97
A219: 13.5 | B219: CODEVASF | E219: COMPOSIÇÃO DE PREÇO UNITÁRIO | I219: =H228 -> 0.66 | J219: =H230 -> 0.8
B220: OBRA: | C220: =$C$2 -> PAVIMENTAÇÃO ASFÁLTICA EM CBUQ - AV. PAREDÃO DE MINAS (BURITIZEIRO / MG) | G220: DATA: | H220: =$H$2 -> AGOSTO / 2023
B221: SERVIÇO: | C221: =VLOOKUP(A219,ORÇAMENTO!$A$10:$I$29,3) -> TRANSPORTE COM CAMINHÃO BASCULANTE, EM VIA URBANA PAVIMENTADA - ADICIONAL PARA DMT EXCEDENTE A 30KM | E221: SINAPI | F221: =VLOOKUP(A219,ORÇAMENTO!$A$10:$I$29,4) -> 95427 | G221: UNIDADE: | H221: =VLOOKUP(A219,ORÇAMENTO!$A$10:$I$29,5) -> M3XKM
B223: TIPO ITEM | C223: CODIGO ITEM | D223: DESCRIÇÃO ITEM | E223: UNIDADE ITEM | F223: COEFICIENTE | G223: PRECO UNITARIO | H223: CUSTO TOTAL
B224: COMPOSICAO | C224: 89883 | D224: CAMINHÃO BASCULANTE 18 M3, COM CAVALO MECÂNICO DE CAPACIDADE MÁXIMA DE TRAÇÃO COMBINADO DE 45000 KG, POTÊNCIA 330 CV, INCLUSIVE SEMIREBOQUE COM CAÇAMBA METÁLICA | E224: CHP | F224: 0,0019000 | G224: 316,09 | H224: =ROUNDDOWN(F224*G224,2) -> 0.6
B225: COMPOSICAO | C225: 89884 | D225: CAMINHÃO BASCULANTE 18 M3, COM CAVALO MECÂNICO DE CAPACIDADE MÁXIMA DE TRAÇÃO COMBINADO DE 45000 KG, POTÊNCIA 330 CV, INCLUSIVE SEMIREBOQUE COM CAÇAMBA METÁLICA | E225: CHI | F225: 0,0008000 | G225: 86,09 | H225: 0.06
H226: 0
B227: PRODUÇÃO DA EQUIPE | E227: 1 | F227: CUSTO | H227: =SUM(H224:H226) -> 0.66
B228: TOTAL | H228: =H227/E227 -> 0.66 | I228: OK
... 118 more rows

Sheet BDI SERV
B1: DETALHAMENTO DO BDI - SERVIÇOS
B4: Item | C4: Descrição dos Serviços | D4: % | E4: %
D5: PV | E5: CD
B7: 1 | C7: ADMINISTRAÇÃO CENTRAL | E7: 4.01
B8: 1.1 | C8: ESCRITÓRIO CENTRAL
B9: 1.2 | C9: VIAGENS
B10: 1.3 | C10: OUTROS
B12: 2 | C12: IMPOSTOS E TAXAS | D12: =SUM(D13:D16) -> 6.15 | E12: =SUM(E13:E16) -> 7.69
B13: 2.1 | C13: ISS (*) | D13: =5*0.5 -> 2.5 | E13: =ROUND(D13*1.2515,2) -> 3.13
B14: 2.2 | C14: PIS | D14: 0.65 | E14: 0.81
B15: 2.3 | C15: Cofins | D15: 3 | E15: 3.75
B16: 2.4 | C16: CONTRIBUIÇÃO PREVIDENCIÁRIA SOBRE A RENDA BRUTA | D16: 0 | E16: 0
B18: 3 | C18: TAXA DE RISCO | E18: =SUM(E19:E22) -> 0.96
B19: 3.1 | C19: SEGURO | E19: 0.2
B20: 3.2 | C20: RISCO | E20: 0.56
B21: 3.3 | C21: GARANTIA | E21: 0.2
B23: 4 | C23: DESPESAS FINANCEIRAS | E23: 1.11
B25: 5 | C25: LUCRO | E25: 7.3
C27: BDI - CALCULADO | E27: =ROUND((((1+(E7+E18)/100)*(1+E23/100)*(1+E25/100)/(1-D12/100)-1)*100),2) -> 21.35
A29: BDI = ((1+((AC+S+R+G)/100))x(1+DF/100)x(1+L/100)/(1-I/100)-1)*100
B31: BDI (CALCULADO): | D31: =ROUND((((1+((E7+E18)/100))*(1+E23/100)*(1+E25/100))/(1-D12/100)-1)*100,2) -> 21.35 | E31: %
A33: (*) ISS CONFORME LEI MUNICIPAL Nº 1.152 / 2007 - Considerando as deduções previstas no Art. 108 - § 5º (Dedução de 50% sem necessidade de comprovação)
A37: BDI EM CONFORMIDADE COM OS ACÓRDÃOS Nº 2369/2011 e ACÓRDÃO Nº 2.622/2013 - TCU - PLENÁRIO

Sheet BDI FORN
B1: DETALHAMENTO DO BDI - FORNECIMENTO (MATERIAL ASFÁLTICO)
B4: Item | C4: Descrição dos Serviços | D4: % | E4: %
D5: PV | E5: CD
B7: 1 | C7: ADMINISTRAÇÃO CENTRAL | E7: 3.72
B8: 1.1 | C8: ESCRITÓRIO CENTRAL
B9: 1.2 | C9: VIAGENS
B10: 1.3 | C10: OUTROS
B12: 2 | C12: IMPOSTOS E TAXAS | D12: =SUM(D13:D16) -> 3.65 | E12: =SUM(E13:E16) -> 4.56
B13: 2.1 | C13: ISS (*) | E13: =ROUND(D13*1.2515,2) -> 0
B14: 2.2 | C14: PIS | D14: 0.65 | E14: 0.81
B15: 2.3 | C15: Cofins | D15: 3 | E15: 3.75
B16: 2.4 | C16: CONTRIBUIÇÃO PREVIDENCIÁRIA SOBRE A RENDA BRUTA | D16: 0 | E16: 0
B18: 3 | C18: TAXA DE RISCO | E18: =SUM(E19:E22) -> 0.82
B19: 3.1 | C19: SEGURO | E19: 0.16
B20: 3.2 | C20: RISCO | E20: 0.5
B21: 3.3 | C21: GARANTIA | E21: 0.16
B23: 4 | C23: DESPESAS FINANCEIRAS | E23: 0.94
B25: 5 | C25: LUCRO | E25: 5
C27: BDI - CALCULADO | E27: =ROUND((((1+(E7+E18)/100)*(1+E23/100)*(1+E25/100)/(1-D12/100)-1)*100),2) -> 15
A29: BDI = ((1+((AC+S+R+G)/100))x(1+DF/100)x(1+L/100)/(1-I/100)-1)*100
B31: BDI (CALCULADO): | D31: =ROUND((((1+((E7+E18)/100))*(1+E23/100)*(1+E25/100))/(1-D12/100)-1)*100,2) -> 15 | E31: %
A37: BDI EM CONFORMIDADE COM OS ACÓRDÃOS Nº 2369/2011 e ACÓRDÃO Nº 2.622/2013 - TCU - PLENÁRIO

Sheet CRONOGRAMA
B1: CRONOGRAMA FÍSICO-FINANCEIRO
B2: OBRA: | C2: =ORÇAMENTO!C5 -> PAVIMENTAÇÃO ASFÁLTICA EM CBUQ - AV. PAREDÃO DE MINAS (BURITIZEIRO / MG) | F2: VALOR: | G2: =ORÇAMENTO!I37 -> 2494606.33
F3: PRAZO: | G3: 180 DIAS
B5: ITEM | C5: ETAPAS/DESCRIÇAO | D5: FISICO/ FINANCEIRO | E5: TOTAL ETAPAS | F5: MÊS 1 | G5: MÊS 2 | H5: MÊS 3 | I5: MÊS 4 | J5: MÊS 5 | K5: MÊS 6 | L5: TOTAL
A6: A | B6: =VLOOKUP(A6,ORÇAMENTO!$A$9:$I$37,2) -> 1 | C6: =VLOOKUP(A6,ORÇAMENTO!$A$9:$I$37,3) -> SERVIÇOS PRELIMINARES | D6: FISICO | E6: =ROUND(E7/$G$2,4) -> 0.0869 | F6: 0.1 | G6: 0.2 | H6: 0.2 | I6: 0.2 | J6: 0.2 | K6: 0.1 | L6: =SUM(F6:K6) -> 1
D7: FINANCEIRO | E7: =ORÇAMENTO!I9 -> 216753.99 | F7: =ROUND($E$7*F6,2) -> 21675.4 | G7: 43350.8 | H7: 43350.8 | I7: 43350.8 | J7: 43350.8 | K7: 21675.4 | L7: =SUM(F7:K7) -> 216754
A8: B | B8: =VLOOKUP(A8,ORÇAMENTO!$A$9:$I$37,2) -> 2 | C8: =VLOOKUP(A8,ORÇAMENTO!$A$9:$I$37,3) -> TERRAPLANAGEM E PAVIMENTAÇÃO | D8: FISICO | E8: =ROUND(E9/$G$2,4) -> 0.1068 | F8: 0.1 | G8: 0.2 | H8: 0.2 | I8: 0.2 | J8: 0.2 | K8: 0.1 | L8: =SUM(F8:K8) -> 1
D9: FINANCEIRO | E9: =ORÇAMENTO!I15 -> 266397.2 | F9: =ROUND($E$9*F8,2) -> 26639.72 | G9: 53279.44 | H9: 53279.44 | I9: 53279.44 | J9: 53279.44 | K9: 26639.72 | L9: =SUM(F9:K9) -> 266397.2
A10: C | B10: =VLOOKUP(A10,ORÇAMENTO!$A$9:$I$37,2) -> 3 | C10: =VLOOKUP(A10,ORÇAMENTO!$A$9:$I$37,3) -> TRANSPORTE DE MATERIAIS | D10: FISICO | E10: =ROUND(E11/$G$2,4) -> 0.1561 | F10: 0.1 | G10: 0.2 | H10: 0.2 | I10: 0.2 | J10: 0.2 | K10: 0.1 | L10: =SUM(F10:K10) -> 1
D11: FINANCEIRO | E11: =ORÇAMENTO!I23 -> 389504.02 | F11: =ROUND($E$11*F10,2) -> 38950.4 | G11: 77900.8 | H11: 77900.8 | I11: 77900.8 | J11: 77900.8 | K11: 38950.4 | L11: =SUM(F11:K11)-0.04 -> 389503.96
A12: D | B12: =VLOOKUP(A12,ORÇAMENTO!$A$9:$I$37,2) -> 4 | C12: =VLOOKUP(A12,ORÇAMENTO!$A$9:$I$37,3) -> OBRAS COMPLEMENTARES | D12: FISICO | E12: =ROUND(E13/$G$2,4) -> 0.1315 | F12: 0 | G12: 0.2 | H12: 0.2 | I12: 0.2 | J12: 0.2 | K12: 0.2 | L12: =SUM(F12:K12) -> 1
D13: FINANCEIRO | E13: =ORÇAMENTO!I28 -> 328128.55 | F13: =ROUND($E$13*F12,2) -> 0 | G13: 65625.71 | H13: 65625.71 | I13: 65625.71 | J13: 65625.71 | K13: 65625.71 | L13: =SUM(F13:K13)-0.02 -> 328128.53
A14: E | B14: =VLOOKUP(A14,ORÇAMENTO!$A$9:$I$37,2) -> 5 | C14: =VLOOKUP(A14,ORÇAMENTO!$A$9:$I$37,3) -> FORNECIMENTOS - MATERIAL ASFÁLTICO (BDI DIFERENCIADO) | D14: FISICO | E14: =ROUND(E15/$G$2,4) -> 0.5186 | F14: 0.1 | G14: 0.2 | H14: 0.2 | I14: 0.2 | J14: 0.2 | K14: 0.1 | L14: =SUM(F14:K14) -> 1
D15: FINANCEIRO | E15: =ORÇAMENTO!I33 -> 1293822.57 | F15: =ROUND($E$15*F14,2) -> 129382.26 | G15: =ROUND($E$15*G14,2) -> 258764.51 | H15: 258764.51 | I15: 258764.51 | J15: 258764.51 | K15: 129382.26 | L15: =SUM(F15:K15)-0.02 -> 1293822.54
B16: TOTAL | D16: FISICO | E16: =SUM(F16:K16) -> 0.999999992 | F16: =F17/$E$17 -> 0.0868464805 | G16: =G17/$E$17 -> 0.1999999976 | H16: 0.1999999976 | I16: 0.1999999976 | J16: 0.1999999976 | K16: 0.1131535211 | L16: =SUM(F16:K16) -> 0.999999992
D17: FINANCEIRO | E17: =E11+E9+E7+E13+E15 -> 2494606.33 | F17: =F11+F9+F7+F13+F15 -> 216647.78 | G17: =G11+G9+G7+G13+G15 -> 498921.26 | H17: 498921.26 | I17: 498921.26 | J17: 498921.26 | K17: 282273.49 | L17: =SUM(F17:K17)+0.02 -> 2494606.33
B19: OBSERVAÇÕES:
